bitfinex-derivatives/quotes_ETHF0:USTF0_20241129
["timestamp","ask_amount","ask_price","bid_price","bid_amount"]
[1732861014287,2.17333777,3569.7,3569.3,3.2078]
[1732861014480,2.17333777,3569.8,3569.5,0.28007]
[1732861015388,2.17333777,3569.8,3569.4,0.4101]
[1732861015389,2.17333777,3569.8,3569.6,0.28006]
[1732861015588,2.17333777,3570.0,3569.6,0.28006]
[1732861016984,2.17333777,3570.0,3569.4,0.4101]
[1732861017189,2.45339777,3569.8,3569.4,0.4101]
[1732861017389,2.17333777,3569.7,3569.5,40.8]
[1732861017688,2.17333777,3569.6,3569.5,40.8]
[1732861018200,2.17333777,3569.6,3569.5,43.6016]
[1732861019594,2.45340777,3569.6,3569.5,43.6016]
[1732861019790,0.28007,3569.6,3569.5,43.6016]
[1732861019994,2.45671933,3569.6,3569.5,43.6016]
[1732861020194,3.26000372,3569.7,3569.5,43.6016]
[1732861020498,2.4567846,3569.6,3569.5,40.8]
[1732861020996,0.28007,3569.6,3569.5,40.8]
[1732861021492,2.45670521,3569.6,3569.5,40.8]
[1732861022196,2.17663521,3569.7,3569.5,43.6016]
[1732861022390,2.17663521,3569.8,3569.5,41.08008]
[1732861023088,2.17663521,3569.8,3569.5,40.8]
[1732861023284,2.17663521,3569.9,3569.6,0.28006]
[1732861023691,2.17663521,3569.9,3569.8,40.8]
[1732861024599,3.26000372,3570.0,3569.8,40.8]
[1732861024600,2.17663521,3570.0,3569.8,40.8]
[1732861024792,2.17663521,3570.0,3569.8,41.08005]
[1732861025189,2.17663521,3570.0,3569.9,3.08084]
[1732861025389,2.17663521,3570.3,3569.9,7.2244]
[1732861025592,3.26000372,3570.5,3569.9,7.2244]
[1732861025593,2.17663521,3570.5,3570.2,3.2078]
[1732861025794,2.17663521,3570.7,3570.3,40.8]
[1732861026295,2.17663521,3570.8,3570.6,0.27999]
[1732861026496,0.27995,3571.1,3571.0,0.27996]
[1732861026497,2.17663521,3571.1,3571.0,0.27996]
[1732861026693,2.17663521,3571.5,3571.0,6.8278]
[1732861026894,2.45655521,3571.5,3571.1,40.8]
[1732861027092,2.17663521,3571.5,3571.1,40.8]
[1732861027295,2.45654521,3571.6,3571.1,41.07995]
[1732861027497,2.17663521,3571.6,3571.1,41.07995]
[1732861028394,2.17663521,3571.8,3571.3,0.27993]
[1732861028601,2.17663521,3571.8,3571.2,0.27994]
[1732861028602,2.45653521,3571.8,3571.2,0.27994]
[1732861028902,2.17663521,3571.8,3571.1,40.8]
[1732861029099,2.45653521,3571.8,3571.2,0.27994]
[1732861029404,2.45653521,3571.8,3571.1,44.43]
[1732861029405,2.17663521,3571.7,3571.1,40.8]
[1732861029701,3.26000372,3571.9,3571.1,40.8]
[1732861029702,2.45653521,3571.8,3571.2,0.27994]
[1732861030297,0.2799,3571.8,3571.2,0.27994]
[1732861030794,0.2799,3571.8,3571.1,41.07995]
[1732861031000,0.2799,3571.8,3571.2,0.27994]
[1732861031199,0.2799,3571.8,3571.1,43.21]
[1732861031200,0.2799,3571.7,3571.1,41.07995]
[1732861031396,0.2799,3571.7,3571.1,43.34995]
[1732861031596,0.2799,3571.8,3571.2,0.27994]
[1732861031796,2.17663521,3571.9,3571.2,0.27994]
[1732861031998,2.17663521,3572.0,3571.1,40.8]
[1732861032294,0.27989,3571.9,3571.3,0.27993]
[1732861032494,2.17663521,3572.0,3571.1,45.15]
[1732861032495,2.45652521,3572.0,3571.1,40.8]
[1732861032693,0.5515,3572.1,3571.3,0.27993]
[1732861032694,0.27989,3571.9,3571.3,0.27993]
[1732861032896,2.72813521,3572.1,3571.1,40.8]
[1732861032897,2.17663521,3572.0,3571.1,40.8]
[1732861033098,3.2078,3571.8,3571.1,40.8]
[1732861033290,3.2078,3571.8,3570.8,0.5375]
[1732861033291,5.38443521,3571.8,3570.8,0.5375]
[1732861033493,0.27995,3571.2,3570.8,0.5375]
[1732861033696,0.27995,3571.2,3570.9,40.8]
[1732861033891,2.17663521,3571.7,3570.9,40.8]
[1732861034105,0.27992,3571.5,3570.9,44.0078]
[1732861034296,0.27992,3571.5,3570.9,44.28776]
[1732861035401,0.27992,3571.6,3571.0,0.27996]
[1732861035801,3.2078,3571.8,3570.9,44.0078]
[1732861036004,0.27991,3571.7,3571.1,0.27995]
[1732861036204,3.4877,3571.8,3571.2,0.27994]
[1732861036402,3.4877,3571.8,3570.9,44.0078]
[1732861036403,3.2078,3571.8,3570.9,44.0078]
[1732861036604,0.27991,3571.6,3571.0,0.27996]
[1732861036804,3.2078,3571.8,3570.9,44.0078]
[1732861037307,0.27991,3571.6,3571.0,0.27995]
[1732861037808,0.27994,3571.3,3570.9,44.0078]
[1732861038003,0.27996,3571.0,3570.9,40.8]
[1732861038307,0.28003,3570.1,3570.0,3.2078]
[1732861038502,0.28006,3569.8,3569.3,3.48789]
[1732861038707,0.28006,3569.8,3569.7,40.8]
[1732861038904,0.28005,3569.9,3569.7,40.8]
[1732861039107,3.2078,3570.5,3569.7,40.8]
[1732861039304,0.28005,3569.8,3569.7,40.8]
[1732861039504,0.28005,3569.9,3569.7,40.8]
[1732861040307,3.2078,3570.5,3569.7,40.8]
[1732861040514,0.28005,3569.9,3569.7,40.8]
[1732861041212,3.2078,3570.5,3569.7,40.8]
[1732861041412,0.28005,3569.9,3569.7,40.8]
[1732861041604,3.2078,3570.5,3569.7,40.8]
[1732861042105,0.28003,3570.1,3569.7,40.8]
[1732861042306,0.28003,3570.1,3569.7,41.08006]
[1732861042503,0.28004,3570.0,3569.7,40.8]
[1732861042811,3.2078,3570.5,3569.7,40.8]
[1732861043009,3.2078,3570.5,3569.7,41.08006]
[1732861043010,0.28003,3570.1,3569.7,41.08006]
[1732861043514,3.2078,3570.5,3569.7,41.08006]
[1732861043515,0.28002,3570.2,3569.8,0.28005]
[1732861043708,3.2078,3570.5,3569.8,0.28005]
[1732861044011,0.28002,3570.3,3569.3,3.2078]
[1732861044213,0.28001,3570.3,3570.2,40.8]
[1732861044715,3.4878,3570.5,3570.2,40.8]
[1732861044913,3.27343521,3570.9,3570.2,40.8]
[1732861044914,6.48123521,3570.9,3570.2,40.8]
[1732861045112,3.2078,3570.9,3570.2,40.8]
[1732861045315,0.27994,3571.3,3570.8,0.27997]
[1732861045520,3.2078,3571.4,3570.6,3.48779]
[1732861045521,0.27995,3571.2,3570.6,3.48779]
[1732861046016,0.27995,3571.2,3571.1,40.8]
[1732861046714,3.2078,3571.4,3571.1,40.8]
[1732861047010,3.4877,3571.8,3571.3,0.27993]
[1732861047410,3.2078,3571.8,3571.3,0.27993]
[1732861047610,3.2078,3571.8,3571.3,0.27994]
[1732861048216,3.4877,3571.8,3571.3,0.27994]
[1732861048406,3.2078,3571.8,3571.3,0.27994]
[1732861048612,3.4877,3571.8,3571.3,0.27994]
[1732861048811,3.2078,3571.8,3571.2,0.84844]
[1732861049119,3.4877,3571.8,3571.2,0.84844]
[1732861049312,3.2078,3571.8,3571.2,0.5685]
[1732861049919,3.4877,3571.8,3571.2,0.84844]
[1732861050114,0.2799,3571.7,3571.2,0.5685]
[1732861050417,0.2799,3571.8,3571.2,0.84844]
[1732861050716,2.17663521,3572.1,3571.3,0.27994]
[1732861050921,0.27989,3571.9,3571.3,0.27994]
[1732861051314,2.17663521,3572.1,3571.4,0.27992]
[1732861051508,0.27988,3572.0,3571.4,0.27992]
[1732861051715,0.27989,3571.9,3571.3,0.27993]
[1732861052117,2.17663521,3572.1,3571.2,0.5685]
[1732861052415,0.2799,3571.8,3571.2,0.84844]
[1732861052825,2.17663521,3572.1,3571.2,0.5685]
[1732861053115,2.17663521,3572.0,3571.2,0.84844]
[1732861053317,0.27991,3571.7,3571.2,0.84844]
[1732861053918,2.17663521,3572.0,3571.2,0.5685]
[1732861054114,0.2799,3571.8,3571.3,0.27993]
[1732861055019,0.27991,3571.7,3571.2,0.84844]
[1732861055722,0.2799,3571.8,3571.2,0.84844]
[1732861055914,0.27991,3571.7,3571.2,0.84844]
[1732861056414,0.27992,3571.6,3571.2,0.5685]
[1732861056615,0.2799,3571.7,3571.2,0.84844]
[1732861056817,0.2799,3571.7,3570.7,3.2078]
[1732861056818,2.14083033,3571.5,3570.7,3.2078]
[1732861057021,3.2078,3571.7,3570.2,3.2078]
[1732861057022,5.34863033,3571.1,3570.2,3.2078]
[1732861057214,5.34863033,3571.1,3569.8,3.2078]
[1732861057418,0.2801,3569.3,3569.2,40.8]
[1732861057821,0.28008,3569.5,3569.2,40.8]
[1732861058014,0.6271,3569.8,3569.2,40.8]
[1732861058217,0.90716,3569.8,3569.3,0.28009]
[1732861058619,0.90716,3569.8,3569.2,41.0801]
[1732861058818,0.6271,3569.8,3569.2,40.8]
[1732861059022,0.28008,3569.5,3569.2,40.8]
[1732861059226,0.6271,3569.8,3569.2,40.8]
[1732861059419,0.6271,3569.8,3569.2,41.08009]
[1732861059420,0.90716,3569.8,3569.2,41.08009]
[1732861059619,0.28008,3569.5,3569.2,40.8]
[1732861059818,3.2078,3569.7,3569.2,40.8]
[1732861060018,0.28007,3569.6,3569.2,40.8]
[1732861060221,0.28007,3569.7,3569.2,40.8]
[1732861060618,0.6271,3569.8,3569.2,40.8]
[1732861061028,0.28008,3569.5,3569.2,40.8]
[1732861061227,0.6271,3569.8,3569.2,40.8]
[1732861061821,0.28007,3569.6,3569.2,40.8]
[1732861062321,0.28007,3569.6,3569.0,0.28011]
[1732861062518,0.28007,3569.6,3569.0,4.55011]
[1732861062920,0.28007,3569.6,3569.5,40.8]
[1732861063723,0.28006,3569.7,3569.5,40.8]
[1732861063922,0.28007,3569.6,3569.5,40.8]
[1732861064428,0.28007,3569.7,3569.5,40.8]
[1732861064825,0.28007,3569.6,3569.5,40.8]
[1732861065121,6.46532881,3570.1,3569.5,40.8]
[1732861065122,5.37948587,3570.1,3569.5,40.8]
[1732861065322,0.28007,3569.6,3569.5,40.8]
[1732861066025,3.08167,3569.6,3569.5,40.8]
[1732861067125,8.50208093,3569.6,3569.5,40.8]
[1732861067322,8.50208093,3569.6,3567.9,3.2078]
[1732861067323,0.28015,3568.6,3567.9,3.2078]
[1732861067624,0.7002,3569.5,3568.4,0.28016]
[1732861067625,0.28014,3568.8,3568.4,0.28016]
[1732861068026,0.28014,3568.7,3567.9,3.2078]
[1732861068231,0.28015,3568.7,3568.6,40.8]
[1732861068729,3.08255,3568.7,3568.6,40.8]
[1732861069431,2.8024,3568.7,3567.9,3.2078]
[1732861069631,0.28017,3568.3,3567.9,3.2078]
[1732861069928,0.6282,3568.8,3567.9,3.488]
[1732861070328,0.6282,3568.8,3568.0,0.28019]
[1732861070627,0.6282,3568.8,3568.1,41.08018]
[1732861070628,0.28015,3568.6,3568.1,41.08018]
[1732861070835,0.28016,3568.5,3568.1,40.8]
[1732861072027,0.6282,3568.8,3568.1,40.8]
[1732861072228,0.28016,3568.4,3568.1,40.8]
[1732861072527,0.28014,3568.7,3568.1,41.08018]
[1732861072727,0.28016,3568.5,3568.1,40.8]
[1732861072922,0.6282,3568.8,3568.1,40.8]
[1732861073123,0.28014,3568.7,3568.1,40.8]
[1732861073332,0.28016,3568.5,3568.1,40.8]
[1732861073835,4.93862494,3569.3,3568.1,40.8]
[1732861073836,3.838,3569.4,3568.3,3.2078]
[1732861074131,0.28012,3568.9,3568.4,0.28016]
[1732861074525,4.4454,3569.4,3568.3,3.2078]
[1732861074724,0.28014,3568.8,3568.3,3.48797]
[1732861075535,2.71336494,3569.3,3568.4,0.28016]
[1732861075536,0.28013,3568.9,3568.4,0.28016]
[1732861075833,0.28013,3568.9,3568.5,0.28015]
[1732861076035,4.72549,3569.4,3568.3,3.2078]
[1732861076240,3.2078,3569.9,3569.3,0.28009]
[1732861076434,2.71336494,3570.1,3568.8,3.2078]
[1732861076435,3.36726494,3570.1,3568.8,3.2078]
[1732861076735,3.36726494,3570.1,3569.4,40.8]
[1732861076736,3.2078,3569.9,3569.4,40.8]
[1732861076938,0.28007,3569.7,3569.4,40.8]
[1732861077126,0.28007,3569.6,3569.4,40.8]
[1732861077334,0.28006,3569.7,3569.4,40.8]
[1732861077834,3.36726494,3570.1,3569.4,40.8]
[1732861077835,0.6539,3570.1,3569.4,40.8]
[1732861078232,0.6539,3570.1,3569.5,0.28007]
[1732861078233,0.28004,3570.0,3569.5,0.28007]
[1732861078428,0.28004,3570.0,3569.6,0.28007]
[1732861078825,0.28005,3569.9,3569.4,40.8]
[1732861079032,0.28006,3569.8,3569.4,40.8]
[1732861079425,0.28006,3569.8,3569.4,41.08008]
[1732861079728,0.28005,3569.9,3569.4,41.08008]
[1732861079929,3.2078,3570.7,3569.4,40.8]
[1732861080129,0.28003,3570.2,3569.4,40.8]
[1732861080325,2.1428712,3570.6,3569.4,40.8]
[1732861080735,0.28,3570.5,3570.0,0.28003]
[1732861081535,0.6335,3570.9,3570.2,0.28002]
[1732861082033,0.27999,3570.7,3570.2,0.28002]
[1732861082335,0.6335,3570.9,3570.1,0.6616]
[1732861082534,0.6335,3570.9,3570.2,40.8]
[1732861082934,0.28001,3570.4,3570.2,40.8]
[1732861083234,0.28001,3570.3,3569.8,0.28005]
[1732861083432,0.28001,3570.3,3568.6,0.70037]
[1732861083433,8.1514712,3570.2,3569.1,0.6616]
[1732861083633,3.2078,3569.8,3569.1,0.6616]
[1732861083834,0.28007,3569.6,3569.2,0.28009]
[1732861084332,0.28006,3569.8,3569.4,0.28008]
[1732861084537,0.28006,3569.7,3569.3,0.28009]
[1732861084837,0.28008,3569.5,3569.1,0.9417]
[1732861085026,0.28007,3569.7,3569.3,0.28009]
[1732861085431,0.28006,3569.8,3569.4,0.28008]
[1732861085732,0.28006,3569.7,3569.4,0.28008]
[1732861085927,5.37752346,3570.3,3569.1,0.6616]
[1732861086131,2.16972346,3570.5,3569.2,3.2078]
[1732861086327,5.37752346,3570.7,3569.6,3.2078]
[1732861086530,3.2078,3570.7,3569.6,7.0578]
[1732861086726,3.2078,3570.7,3569.7,0.28006]
[1732861086727,0.28003,3570.1,3569.7,0.28006]
[1732861086936,0.28003,3570.1,3569.6,7.0578]
[1732861086937,0.28003,3570.1,3569.6,3.48787]
[1732861087136,0.28003,3570.1,3569.6,3.60787]
[1732861087342,2.78592346,3570.8,3569.3,0.6058]
[1732861087343,0.28005,3569.9,3569.5,0.28007]
[1732861087539,3.2078,3570.2,3569.3,0.6058]
[1732861087839,0.28005,3569.9,3569.4,0.28008]
[1732861088031,0.28,3570.5,3569.5,0.28007]
[1732861088236,5.92135078,3570.6,3569.5,0.28007]
[1732861088237,0.28005,3569.9,3569.5,0.28007]
[1732861088537,0.28005,3569.8,3569.4,0.28008]
[1732861088737,5.92135078,3570.2,3569.2,3.2078]
[1732861089042,0.28006,3569.8,3569.4,0.28008]
[1732861089535,5.92135078,3570.2,3569.2,3.4879]
[1732861089536,0.28007,3569.7,3569.2,3.4879]
[1732861089732,0.28007,3569.6,3569.2,3.4879]
[1732861089936,5.92135078,3570.2,3569.3,0.28009]
[1732861090138,0.28006,3569.7,3569.3,0.28009]
[1732861090340,5.92135078,3570.2,3569.2,3.2078]
[1732861090542,3.2078,3569.8,3569.2,3.2078]
[1732861090746,0.28007,3569.6,3569.2,3.4879]
[1732861091137,3.2078,3569.8,3569.1,0.6616]
[1732861091450,3.2078,3569.8,3568.4,0.6339]
[1732861091451,0.28011,3569.1,3568.4,0.6339]
[1732861091738,0.28011,3569.1,3568.3,3.8259]
[1732861092046,0.28011,3569.1,3568.4,0.28016]
[1732861092243,0.28011,3569.1,3568.3,4.10606]
[1732861092449,0.28011,3569.1,3568.4,0.28016]
[1732861093452,0.28011,3569.1,3568.3,3.8259]
[1732861093842,0.28011,3569.1,3568.4,0.28016]
[1732861094141,0.28011,3569.1,3568.5,0.28015]
[1732861094546,0.28011,3569.1,3568.3,3.8259]
[1732861094952,0.28011,3569.1,3568.3,4.10607]
[1732861095344,0.28011,3569.1,3568.4,0.28016]
[1732861096146,2.16972346,3569.5,3568.3,3.8259]
[1732861096147,2.16972346,3569.7,3569.0,43.6016]
[1732861096346,0.28005,3569.9,3569.1,3.2078]
[1732861096552,3.2078,3570.1,3569.1,0.6402]
[1732861096752,3.2078,3570.0,3569.1,0.6402]
[1732861096954,0.28004,3569.9,3569.1,0.9203]
[1732861097150,0.28008,3569.5,3569.2,0.28009]
[1732861097355,0.28008,3569.5,3569.4,40.8]
[1732861098355,3.2078,3569.6,3569.4,40.8]
[1732861098553,3.2078,3569.6,3569.5,3.08168]
[1732861099057,3.2078,3569.6,3569.5,5.18168]
[1732861099559,3.25458519,3570.5,3569.5,8.1094]
[1732861099560,2.16972346,3570.5,3569.5,8.1094]
[1732861099749,0.28001,3570.4,3570.0,3.48784]
[1732861100151,0.28,3570.5,3570.0,3.2078]
[1732861100351,2.44973346,3570.4,3570.0,3.2078]
[1732861100557,2.16972346,3570.4,3570.0,3.2078]
[1732861100859,0.28004,3570.0,3569.6,0.28006]
[1732861101055,0.28002,3570.2,3569.5,3.2078]
[1732861101359,0.28006,3569.7,3569.5,3.2078]
[1732861101955,2.16972346,3570.0,3569.5,3.2078]
[1732861102156,0.28007,3569.6,3569.5,3.2078]
[1732861102360,0.28006,3569.8,3569.5,3.2078]
[1732861102657,2.16972346,3570.0,3569.5,3.2078]
[1732861102861,0.28006,3569.8,3569.5,3.2078]
[1732861103956,2.44978346,3569.8,3569.5,3.2078]
[1732861104156,2.16972346,3569.9,3569.7,0.28006]
[1732861104351,2.44976346,3570.0,3569.5,3.48787]
[1732861104553,2.44976346,3570.0,3569.5,3.2078]
[1732861104554,2.16972346,3569.9,3569.5,3.2078]
[1732861104750,3.25458519,3570.0,3569.5,3.2078]
[1732861104751,2.16972346,3569.8,3569.5,3.48787]
[1732861105160,2.16972346,3569.9,3569.5,3.48787]
[1732861105457,2.16972346,3569.9,3569.7,40.8]
[1732861106456,2.44977346,3569.9,3569.7,40.8]
[1732861106659,2.16972346,3569.9,3569.7,40.8]
[1732861106960,2.44977346,3569.8,3569.7,40.8]
[1732861107362,3.50201765,3569.8,3569.7,40.8]
[1732861107556,10.27889017,3569.8,3569.0,3.2078]
[1732861107758,2.17703673,3569.4,3569.0,3.2078]
[1732861107952,2.17703673,3569.3,3569.0,3.2078]
[1732861108161,0.28011,3569.1,3569.0,3.2078]
[1732861108361,2.17703673,3569.3,3568.6,3.48794]
[1732861108362,0.28012,3569.0,3568.6,3.48794]
[1732861108556,2.17703673,3569.3,3568.9,40.8]
[1732861108756,0.2801,3569.2,3569.0,3.2078]
[1732861108966,2.17703673,3569.3,3569.0,3.2078]
[1732861108967,0.2801,3569.3,3569.0,3.2078]
[1732861109262,0.2801,3569.2,3569.0,3.2078]
[1732861110760,0.2801,3569.2,3568.9,40.8]
[1732861110961,0.2801,3569.2,3569.0,3.2078]
[1732861111156,0.28011,3569.1,3569.0,3.2078]
[1732861111866,0.28012,3569.0,3568.9,40.8]
[1732861113158,3.26555509,3569.2,3568.9,40.8]
[1732861113159,2.17687303,3569.2,3568.9,40.8]
[1732861113566,0.28012,3569.0,3568.9,40.8]
[1732861115263,2.45699303,3569.0,3568.9,40.8]
[1732861115660,0.28012,3569.0,3568.9,40.8]
[1732861116461,2.45699303,3569.0,3568.9,40.8]
[1732861118566,0.28012,3569.0,3568.9,40.8]
[1732861119365,3.54567509,3569.0,3568.9,40.8]
[1732861119560,0.28012,3569.0,3568.9,40.8]
[1732861120266,3.54567509,3569.0,3568.9,40.8]
[1732861120466,6.34727509,3569.0,3568.9,40.8]
[1732861120667,6.76771856,3569.0,3568.9,40.8]
[1732861121071,3.50216347,3569.0,3568.9,40.8]
[1732861121669,7.84553521,3569.0,3568.9,40.8]
[1732861121974,0.28014,3568.7,3568.6,3.2078]
[1732861122270,3.547712,3568.7,3568.6,3.2078]
[1732861122470,3.547712,3568.7,3568.6,44.0078]
[1732861123269,0.28014,3568.7,3568.6,44.0078]
[1732861123661,2.45801,3568.7,3568.6,44.0078]
[1732861124668,0.28014,3568.7,3568.6,44.0078]
[1732861124871,2.45801,3568.7,3568.6,44.0078]
[1732861125274,0.28014,3568.7,3568.6,44.0078]
[1732861125569,2.17787,3568.7,3568.6,44.28795]
[1732861125767,3.267572,3569.0,3568.6,44.28795]
[1732861125768,2.17787,3569.0,3568.6,44.0078]
[1732861125969,0.28014,3568.8,3568.6,44.0078]
[1732861126168,0.28014,3568.7,3568.6,44.0078]
[1732861127362,0.28014,3568.8,3568.6,44.0078]
[1732861127570,0.28014,3568.7,3568.6,44.0078]
[1732861129674,2.45801,3568.7,3568.6,44.0078]
[1732861131375,2.45801,3568.7,3568.6,40.8]
[1732861131871,0.28014,3568.7,3568.6,44.0078]
[1732861132873,0.28014,3568.7,3568.6,40.8]
[1732861132874,2.45801,3568.7,3568.6,40.8]
[1732861134167,2.458,3568.8,3568.6,44.0078]
[1732861134798,2.45801,3568.8,3568.6,44.0078]
[1732861135775,0.28014,3568.7,3568.6,44.0078]
[1732861136289,2.458,3568.8,3568.6,44.0078]
[1732861136570,2.17787,3568.8,3568.6,44.0078]
[1732861136777,2.17787,3568.8,3568.7,2.8024]
[1732861136977,2.17787,3569.1,3568.7,8.017]
[1732861137171,3.547672,3569.2,3569.0,3.2078]
[1732861137674,2.17803107,3569.1,3569.0,3.2078]
[1732861138671,2.17803107,3569.1,3569.0,3.48792]
[1732861138977,2.17803107,3569.2,3569.0,3.48792]
[1732861139280,2.17803107,3569.3,3569.0,6.0094]
[1732861139476,3.267572,3569.5,3569.4,0.28008]
[1732861139477,2.17821302,3569.5,3569.4,0.28008]
[1732861139673,2.17821302,3569.7,3569.4,3.2078]
[1732861139869,2.17821302,3569.8,3569.4,3.2078]
[1732861140084,2.8070677,3570.5,3569.8,0.28005]
[1732861140085,2.17821302,3569.9,3569.8,0.28005]
[1732861140277,2.17821302,3570.0,3569.8,3.8509]
[1732861140581,3.267572,3570.1,3569.8,3.8509]
[1732861140582,2.17821302,3569.9,3569.8,3.8509]
[1732861140973,3.267572,3570.1,3569.8,6.93255]
[1732861140974,2.17821302,3570.0,3569.8,6.93255]
[1732861141175,2.17821302,3570.0,3569.8,3.8509]
[1732861141378,2.17821302,3570.0,3569.8,6.6517]
[1732861142282,6.48869532,3569.9,3569.4,3.2078]
[1732861142580,2.45644901,3569.6,3569.2,0.28009]
[1732861142769,2.45644901,3569.6,3569.3,41.08009]
[1732861142770,2.17637901,3569.6,3569.3,41.08009]
[1732861143380,2.17637901,3569.6,3569.3,40.8]
[1732861144776,2.45644901,3569.6,3569.3,40.8]
[1732861145282,0.28008,3569.5,3569.3,40.8]
[1732861145687,2.45644901,3569.6,3569.3,40.8]
[1732861145977,2.17637901,3569.6,3569.3,40.8]
[1732861146381,2.45644901,3569.6,3569.3,40.8]
[1732861146577,2.17637901,3569.6,3569.3,40.8]
[1732861146783,0.28008,3569.5,3569.3,40.8]
[1732861146974,2.45645901,3569.4,3569.3,40.8]
[1732861147176,3.931772,3569.5,3569.0,3.2078]
[1732861147379,0.28011,3569.1,3569.0,3.2078]
[1732861147681,0.28011,3569.1,3569.0,44.0078]
[1732861147877,0.28011,3569.1,3569.0,40.8]
[1732861148582,3.547682,3569.1,3569.0,40.8]
[1732861148779,6.48959957,3569.1,3568.4,0.6148]
[1732861148976,6.48959957,3569.1,3568.3,0.66]
[1732861148977,0.28018,3568.2,3568.0,3.2078]
[1732861149177,0.28019,3568.1,3568.0,3.2078]
[1732861149478,2.45628097,3568.2,3568.0,3.2078]
[1732861149684,2.17610097,3568.1,3568.0,3.2078]
[1732861149879,2.45629097,3568.1,3568.0,3.2078]
[1732861150183,2.45629097,3568.1,3567.8,0.499]
[1732861150184,0.2802,3567.9,3567.8,0.499]
[1732861151082,0.2802,3567.9,3567.8,41.299]
[1732861151685,2.4563812,3567.9,3567.8,41.299]
[1732861152383,2.45621627,3567.9,3567.8,41.299]
[1732861153682,0.2802,3567.9,3567.8,41.299]
[1732861153888,3.54435146,3567.9,3567.8,41.299]
[1732861154084,6.7117869,3567.9,3567.8,41.299]
[1732861154288,11.06854957,3567.9,3567.8,41.299]
[1732861154888,6.7117869,3567.9,3567.8,41.299]
[1732861155385,3.96247688,3567.9,3567.8,41.299]
[1732861155583,0.2802,3567.9,3567.8,41.299]
[1732861155782,2.45462706,3567.9,3567.8,41.299]
[1732861155979,2.17442706,3567.9,3567.8,41.299]
[1732861156285,2.17442706,3568.1,3567.9,0.2802]
[1732861156484,2.45461706,3568.1,3567.8,0.499]
[1732861156682,2.17442706,3568.2,3567.8,0.499]
[1732861156988,2.1438677,3568.6,3568.1,40.8]
[1732861156989,2.17442706,3568.6,3568.1,40.8]
[1732861157287,2.17442706,3568.8,3568.4,3.2078]
[1732861157485,0.28015,3568.6,3568.4,3.2078]
[1732861157788,0.28015,3568.6,3568.1,40.8]
[1732861157789,2.17442706,3568.6,3568.1,40.8]
[1732861157993,2.17442706,3568.6,3568.1,41.08019]
[1732861158182,0.28015,3568.6,3568.2,0.28018]
[1732861158688,2.45457706,3568.6,3568.1,41.08018]
[1732861158992,2.17442706,3568.6,3568.1,40.8]
[1732861159287,2.45457706,3568.6,3568.1,41.08018]
[1732861159688,4.31829476,3568.6,3568.1,40.8]
[1732861159884,0.28017,3568.3,3568.1,40.8]
[1732861160080,4.31829476,3568.6,3568.1,40.8]
[1732861160081,0.28018,3568.2,3568.1,40.8]
[1732861160283,2.4240477,3568.2,3568.1,40.8]
[1732861160680,2.1438677,3568.2,3567.8,0.499]
[1732861161088,0.2802,3567.9,3567.8,0.499]
[1732861161289,2.1438677,3568.2,3567.8,41.299]
[1732861161489,0.28019,3568.1,3567.8,41.299]
[1732861161787,0.2802,3567.9,3567.8,41.299]
[1732861162689,3.0834,3567.9,3567.8,41.299]
[1732861163386,5.25642163,3567.9,3567.8,41.299]
[1732861163791,3.0834,3567.9,3567.8,41.299]
[1732861163985,0.2802,3567.9,3567.8,41.299]
[1732861164187,2.45334007,3567.9,3567.8,41.299]
[1732861164685,0.2802,3567.9,3567.8,41.299]
[1732861164889,2.45334007,3567.9,3567.8,41.299]
[1732861165083,0.2802,3567.9,3567.8,41.299]
[1732861165287,2.45334007,3567.9,3567.8,41.299]
[1732861165494,0.2802,3567.9,3567.8,41.299]
[1732861166193,1.95334007,3567.9,3567.8,41.299]
[1732861166389,3.26168998,3568.1,3567.8,41.299]
[1732861166692,0.2802,3567.9,3567.8,41.299]
[1732861170497,0.27222541,3567.9,3567.8,41.299]
[1732861170690,0.28019,3568.1,3567.8,41.57921]
[1732861171192,2.4240477,3568.2,3567.9,0.2802]
[1732861171390,0.28019,3568.1,3567.8,1.40641]
[1732861171590,2.1438677,3568.2,3568.0,40.8]
[1732861172098,0.28019,3568.1,3568.0,40.8]
[1732861172293,5.40555768,3568.6,3568.1,2.8024]
[1732861172503,5.42921468,3569.0,3568.1,3.2078]
[1732861172504,3.26168998,3568.7,3568.1,3.2078]
[1732861172693,3.26168998,3568.9,3568.2,0.6661]
[1732861172890,3.26168998,3568.9,3568.2,0.94627]
[1732861172891,0.28015,3568.6,3568.2,0.94627]
[1732861173097,2.1438677,3568.6,3568.1,3.2078]
[1732861173389,3.26168998,3569.0,3568.6,0.28014]
[1732861173390,5.68567768,3569.0,3568.6,0.28014]
[1732861173695,2.4239877,3569.0,3568.6,0.28014]
[1732861173895,0.28012,3568.9,3568.5,3.48795]
[1732861174194,2.1438677,3569.0,3568.5,3.48795]
[1732861174195,0.28013,3568.8,3568.7,40.8]
[1732861174393,2.1438677,3569.0,3568.7,40.8]
[1732861174593,3.54178998,3569.3,3568.8,0.28013]
[1732861174789,0.2801,3569.2,3568.8,1.56813]
[1732861175301,0.28012,3568.9,3568.8,1.288]
[1732861177201,0.28012,3568.9,3568.8,0.6282]
[1732861178606,0.28012,3569.0,3568.8,0.6282]
[1732861178898,0.28012,3568.9,3568.8,0.6282]
[1732861182703,0.28013,3568.8,3568.7,40.8]